[Event "87th Spanish Championship 2022"]
[Site "Linares"]
[Date "2022.08.15"]
[Round "6.3"]
[White "Perez Candelario, Manuel"]
[Black "Espinosa Aranda, Angel"]
[Result "1-0"]
[ECO "B42"]
[WhiteElo "2578"]
[BlackElo "2439"]
[Annotator "TA"]
[PlyCount "155"]
[EventDate "2022.08.11"]
[EventType "swiss"]
[EventCountry "ESP"]
[SourceTitle "playchess.com"]
[Source "ChessBase"]
[SourceQuality "1"]
[TimeControl "5400+30"]

{[%evp 16,155,22,29,43,42,33,36,19,26,40,23,31,43,18,0,0,-11,61,50,58,53,101,122,183,174,158,141,238,112,189,190,181,61,63,59,68,63,69,71,68,46,137,137,137,131,125,97,102,95,97,85,87,87,125,160,247,176,168,176,161,133,147,115,160,68,52,60,60,54,67,29,98,129,532,514,518,518,769,754,1012,956,851,353,1287,1261,1239,1137,1181,798,4149,3901,2152,1384,12834,12830,12827,12797,12838,12841,12841,12839,12831,12818,12806,12799,12799,0,12799,12799,12799,12799,12799,12799,12799,12795,12802,12800,12810,12793,12370,11381,29956,5572,29958,29965,29967,12195,29978,29971,29981,29982,29984,29986,29991,29991,29992,29993,29995,29996,29996,29997]} 1. e4 {[%emt 0:00:04]} c5 {[%emt 0:00:08]} 2. Nf3 {[%emt 0:00:04]} e6 {[%emt 0:00:20]} 3. d4 {[%emt 0:00:11]} cxd4 {[%emt 0:00:17]} 4. Nxd4 {[%emt 0:00:04]} a6 {[%emt 0:00:12]} 5. Bd3 {[%emt 0:00:26]} Bc5 {[%emt 0:00:30]} 6. Nb3 {[%emt 0:00:06]} Ba7 {[%emt 0:00:07]} 7. Nc3 {[%emt 0:05:10]} Nc6 {[%emt 0:03:02]} 8. Qe2 {[%emt 0:09:35]} Nge7 {[%emt 0:05:32]} 9. Be3 {[%emt 0:07:51]} O-O {[%emt 0:05:28] B42: Sicilian: Kan Variation: 5 Bd3.} 10. O-O-O {[%emt 0:03:46]} b5 {[%emt 0:04:57] [#]} 11. h4 $146 {[%emt 0:01:05]} ({Predecessor:} 11. Kb1 b4 12. Na4 d5 13. exd5 Nxd5 14. Be4 Bxe3 15. fxe3 Qe7 16. Bxd5 exd5 17. Nb6 {1-0 (34) Sjugirov,S (2696)-Dubov,D (2711) Chess.com INT 2022}) 11... b4 {[%emt 0:07:29] White is slightly better.} 12. Na4 {[%emt 0:02:25]} d6 {[%emt 0:01:56]} 13. Bxa7 {[%emt 0:01:48]} Rxa7 {[%emt 0:01:41]} 14. Qe3 {[%emt 0:01:42]} Bd7 {[%emt 0:09:35]} 15. Nb6 {[%emt 0:02:55]} a5 {[%emt 0:07:27]} 16. Bb5 {[%emt 0:07:18]} Qb8 {[%emt 0:07:07]} ({Black should play} 16... a4 $11 17. Bxa4 (17. Nxa4 Qc7 $11) 17... Qc7) 17. Nxd7 $14 {[%emt 0:02:48] 0x0.001e3d4687dedp-1022s more active pieces. The black rooks are badly placed.} Rxd7 {[%emt 0:00:13]} 18. Ba4 {[%emt 0:00:23]} Rc7 {[%emt 0:13:33]} (18... Rdd8 $14 {is superior.}) 19. h5 $16 {[%emt 0:03:52][%cal Bh4h5,Bh5h6][%mdl 32]} (19. Rxd6 $6 Ne5 20. Rdd1 (20. Nxa5 Ra7 $17) 20... Rfc8 $11) 19... Ne5 {[%emt 0:01:40]} (19... h6 $16) 20. h6 $18 {[%emt 0:02:11]} g6 {[%emt 0:06:23]} 21. Nd4 {[%emt 0:03:28]} d5 {[%emt 0:01:40]} (21... Qd8 $16 {was necessary.}) 22. Kb1 {[%emt 0:04:43]} (22. Rhe1 $18 {and White stays clearly on top.}) 22... Nc4 {[%emt 0:07:27]} (22... Qb6 $16) 23. Qf3 {[%emt 0:04:56] White wants to mate with Qf6.} Rb7 {[%emt 0:02:01]} 24. Rhe1 {[%emt 0:07:33]} (24. Qf6 $6 Qe5 25. Qxe5 Nxe5 $14) (24. Bc6 $18 Rb6 25. Qf6 $1 (25. exd5 Qe5 $16)) 24... Qe5 $14 {[%emt 0:01:24]} 25. Qd3 {[%emt 0:05:35]} Qf6 {[%emt 0:01:21]} 26. exd5 {[%emt 0:05:05]} exd5 {[%emt 0:00:06]} 27. Bb3 {[%emt 0:01:50]} Rc7 {[%emt 0:02:15]} 28. Qg3 {[%emt 0:03:02]} (28. g4 $5 {[%cal Rd3g3]}) 28... Rfc8 {[%emt 0:04:05]} ({Black should try} 28... Rc5 $14) 29. Bxc4 $16 {[%emt 0:00:24]} Rxc4 {[%emt 0:02:03] [#]} 30. Qe3 $36 {[%emt 0:01:38][%mdl 2048] White is in control.} Kf8 {[%emt 0:00:27]} 31. g4 {[%emt 0:00:40] Inhibits Nf5. g5 is the strong threat.} g5 {[%emt 0:02:25]} 32. b3 {[%emt 0:03:32]} Rc3 {[%emt 0:00:15]} 33. Qe5 {[%emt 0:00:45]} Qxe5 {[%emt 0:01:21]} 34. Rxe5 {[%emt 0:00:04]} f6 {[%emt 0:01:09]} 35. Re6 {[%emt 0:00:24]} Ng8 {[%emt 0:01:20]} (35... Kf7 $16 36. Rde1 Ng8) 36. f3 {[%emt 0:01:04] Strongly threatening Ra6.} Kf7 {[%emt 0:00:47][%cal Oc3f3]} 37. Ra6 {[%emt 0:00:39]} R3c5 {[%emt 0:00:18]} 38. Nf5 {[%emt 0:01:39] And now Nd6+ would win.} Kg6 {[%emt 0:00:43]} 39. Ra7 {[%emt 0:02:26][%csl Gf5,Gh6][%cal Ra7g7]} R5c7 {[%emt 0:00:35]} 40. Rxc7 {[%emt 0:02:25]} ({White has to play} 40. Rxa5 $16 {Black must now prevent Rb5.} Rxc2 41. Rh1 (41. Rdxd5 $2 Rc1+ 42. Kb2 R8c2#) (41. Raxd5 R2c3 $16)) 40... Rxc7 $14 {[%emt 0:00:04]} 41. Rxd5 {[%emt 0:00:23]} Nxh6 {[%emt 0:00:12]} 42. Nxh6 {[%emt 0:01:06]} ({Much weaker is} 42. Rxa5 Nxf5 43. Rxf5 h5 $17) 42... Kxh6 $16 {[%emt 0:00:03][%mdl 4096] Endgame KR-KR} 43. c4 {[%emt 0:00:53]} bxc3 {[%emt 0:00:38]} (43... Re7 $1 $11 {remains equal.}) 44. Rxa5 {[%emt 0:00:37] White stays focused until the end.} c2+ $2 {[%emt 0:00:48][%mdl 8192]} (44... Re7 $16 {is more resistant.}) 45. Kc1 $18 {[%emt 0:00:03]} Kg6 {[%emt 0:00:13][%cal Of6f5]} 46. b4 {[%emt 0:00:44]} h5 {[%emt 0:01:07]} 47. gxh5+ {[%emt 0:00:04]} Kxh5 {[%emt 0:00:04]} 48. Rc5 {[%emt 0:00:47]} Ra7 {[%emt 0:01:20]} 49. Kb2 {[%emt 0:00:19]} Kh4 $2 {[%emt 0:00:22]} (49... f5 50. b5 (50. Rxc2 g4 $16) (50. Kxc2 Rxa2+ 51. Kc1 Rf2 $11) 50... f4) 50. Rxc2 {[%emt 0:00:27]} Kg3 {[%emt 0:00:30]} 51. Rc3 {[%emt 0:00:26]} f5 {[%emt 0:00:29]} 52. Kb3 {[%emt 0:01:12]} f4 {[%emt 0:00:26]} 53. a4 {[%emt 0:00:26]} g4 {[%emt 0:00:49]} 54. fxg4+ {[%emt 0:00:07]} Kxg4 {[%emt 0:00:23]} 55. b5 {[%emt 0:00:47]} f3 {[%emt 0:00:18]} 56. Kb4 {[%emt 0:00:40]} Re7 {[%emt 0:00:39]} 57. Rc1 {[%emt 0:00:55]} f2 {[%emt 0:00:36] [#]} 58. Rf1 $1 {[%emt 0:00:06]} Kf3 {[%emt 0:00:25]} 59. a5 {[%emt 0:00:53]} Re1 {[%emt 0:00:15] [#]} 60. Rxf2+ $3 {[%emt 0:00:05][%mdl 512]} Kxf2 {[%emt 0:00:02] KR-KPP} 61. a6 $2 {[%emt 0:03:40]} ({White must play} 61. b6 $18 Ke3 62. a6) 61... Ke3 $2 {[%emt 0:00:13][%mdl 8192]} (61... Ra1 $11) 62. a7 {[%emt 0:00:37]} Ra1 {[%emt 0:00:16]} 63. b6 {[%emt 0:00:03] b7 would kill now.} Kd4 {[%emt 0:00:38]} 64. b7 {[%emt 0:00:42]} Rb1+ {[%emt 0:01:11]} 65. Ka3 {[%emt 0:00:04]} Rxb7 {[%emt 0:01:04]} 66. a8=Q {[%emt 0:00:05] KQ-KR} Rb5 {[%emt 0:00:29]} 67. Qc6 {[%emt 0:00:19]} Rd5 {[%emt 0:00:17]} 68. Kb4 {[%emt 0:00:07] Intending Qe6 and mate.} Re5 {[%emt 0:00:39] Prevents Qe6.} 69. Qc4+ {[%emt 0:00:29]} Ke3 {[%emt 0:00:02]} 70. Kc3 {[%emt 0:00:09]} Kf3 {[%emt 0:00:31]} 71. Qh4 {[%emt 0:00:48]} (71. Kd2 $142 Re4 72. Qc6 Kf4 73. Qf6+ Kg3 74. Qg5+ Kf3 75. Kd3 Rf4 76. Qh5+ Rg4 77. Qe5) 71... Re2 {[%emt 0:00:33]} 72. Qf6+ {[%emt 0:00:38] White mates.} Kg3 {[%emt 0:00:24]} 73. Kd3 {[%emt 0:00:06]} Rg2 {[%emt 0:00:16]} 74. Ke3 {[%emt 0:00:12]} Kh2 {[%emt 0:00:26]} 75. Qh4+ {[%emt 0:00:16]} Kg1 {[%emt 0:00:04]} 76. Kf3 {[%emt 0:00:06]} Rg6 {[%emt 0:01:20]} 77. Qd4+ {[%emt 0:00:41]} Kh2 {[%emt 0:00:25]} 78. Qb2+ {[%emt 0:00:34] Weighted Error Value: White=0.16 (very precise) /Black=0.43} 1-0

[Event "87th Spanish Championship 2022"]
[Site "Linares"]
[Date "2022.08.15"]
[Round "6.4"]
[White "Narciso Dublan, Marc"]
[Black "Cuenca Jimenez, Jose Fernando"]
[Result "1-0"]
[ECO "A45"]
[WhiteElo "2461"]
[BlackElo "2552"]
[Annotator "TA"]
[PlyCount "85"]
[EventDate "2022.08.11"]
[EventType "swiss"]
[EventCountry "ESP"]
[SourceTitle "playchess.com"]
[Source "ChessBase"]
[SourceQuality "1"]
[TimeControl "5400+30"]

{[%evp 9,85,-4,8,25,34,32,34,25,26,26,22,24,18,9,12,15,16,6,12,0,19,0,20,0,15,6,17,5,9,0,8,4,16,19,39,37,29,30,35,31,20,31,136,144,131,128,150,92,89,84,90,78,94,0,0,0,0,0,0,0,0,0,74,74,542,522,29973,29974,29974,29975,29979,29980,29980,29981,12840,12839,12840,12837]} 1. d4 {[%emt 0:00:05]} Nf6 {[%emt 0:00:07]} 2. Bf4 {[%emt 0:00:11]} d5 {[%emt 0:03:51]} 3. e3 {[%emt 0:00:14]} c5 {[%emt 0:00:15]} 4. c3 {[%emt 0:00:30]} Nc6 {[%emt 0:03:16]} 5. Nd2 {[%emt 0:00:09]} Qb6 {[%emt 0:02:30]} 6. Qb3 {[%emt 0:00:31] D00: 1 d4 d5: Unusual lines.} c4 {[%emt 0:04:01]} 7. Qc2 {[%emt 0:00:36]} Bg4 {[%emt 0:05:57]} 8. Be2 {[%emt 0:02:39] White is slightly better.} Bxe2 {[%emt 0:02:59]} 9. Nxe2 {[%emt 0:00:06]} e6 {[%emt 0:00:03]} 10. Ng3 {[%emt 0:10:30]} Be7 {[%emt 0:04:01]} 11. e4 {[%emt 0:03:25]} O-O {[%emt 0:02:29]} 12. O-O {[%emt 0:00:23]} Qd8 {[%emt 0:01:33]} 13. Rfe1 {[%emt 0:10:34]} b5 {[%emt 0:02:32]} 14. Bg5 {[%emt 0:07:13] [#]} Rb8 $146 {[%emt 0:11:45]} ({Predecessor:} 14... Nxe4 15. Bxe7 Nxe7 16. Ndxe4 dxe4 17. Rxe4 Nd5 18. Nh5 Qg5 19. Qe2 g6 20. Ng3 Rac8 {1-0 (49) Iyti,B (2334)-Hamed,M (2060) Dubai 2021}) 15. a3 {[%emt 0:07:03]} Rb6 {[%emt 0:06:08]} 16. Nf3 {[%emt 0:08:17]} a5 {[%emt 0:04:35]} 17. Bxf6 {[%emt 0:09:55]} Bxf6 {[%emt 0:00:18]} 18. Nh5 {[%emt 0:00:07]} Bg5 {[%emt 0:06:29]} 19. Rad1 {[%emt 0:08:58]} Bh6 {[%emt 0:07:27]} 20. exd5 {[%emt 0:08:51]} exd5 {[%emt 0:00:31]} 21. Ne5 {[%emt 0:01:58]} g6 {[%emt 0:03:50] [#]} 22. Nd7 $1 {[%emt 0:07:03]} gxh5 {[%emt 0:01:33]} 23. Qf5 {[%emt 0:00:17]} Ne7 $1 {[%emt 0:18:13]} 24. Rxe7 {[%emt 0:00:11]} Qxe7 {[%emt 0:00:03]} 25. Nxb6 {[%emt 0:00:07]} Qe2 {[%emt 0:00:22]} (25... Re8 $1 $14 26. g3 Qe6 27. Qxe6 fxe6) 26. Rf1 $16 {[%emt 0:03:33]} Bg7 {[%emt 0:00:03]} 27. Nxd5 {[%emt 0:03:18]} Qxb2 {[%emt 0:00:04]} 28. Qb1 {[%emt 0:04:37] White is more active.} (28. Qxh5 Qxa3 29. h3 b4 $11) (28. h4 $142 $1) 28... Qb3 {[%emt 0:02:16]} 29. Qc1 {[%emt 0:00:24]} Re8 {[%emt 0:03:22] Prevents Ne7+.} 30. h4 {[%emt 0:00:43]} h6 {[%emt 0:00:40]} 31. Nf4 {[%emt 0:02:26]} (31. Qb1 $16) 31... b4 $11 {[%emt 0:00:48]} (31... Bf8 32. Nxh5 Re6 33. Nf4 Bxa3 34. Qd2 $16) 32. axb4 {[%emt 0:00:09]} axb4 {[%emt 0:00:03]} 33. cxb4 {[%emt 0:00:20]} c3 {[%emt 0:01:02]} 34. Nxh5 {[%emt 0:00:55]} c2 {[%emt 0:00:33]} 35. Qf4 {[%emt 0:01:01] Threatens to win with Qg4.} Qc4 {[%emt 0:01:04]} (35... Qc3 $11 {remains equal.} 36. Kh2 (36. Nxg7 $2 Re1 $19) 36... Bxd4 37. Qxh6 Qd3) 36. Qg3 $1 $16 {[%emt 0:00:35][%csl Gh5][%cal Rg3g7]} ({Reject} 36. Nxg7 Kxg7 37. Qg4+ Kf8 $11) 36... Qxf1+ $4 {[%emt 0:01:35][%mdl 8192] A mistake that costs the game.} 37. Kh2 $18 {[%emt 0:00:01][%csl Gh5][%cal Rg3g7]} Kf8 {[%emt 0:01:16]} 38. Qxg7+ {[%emt 0:00:14]} Ke7 {[%emt 0:00:01] [#]} 39. Qe5+ $1 {[%emt 0:00:44]} ({Not} 39. Qf6+ Kd7 40. Qxf7+ Kd8 41. Qd5+ Kc7 42. Qc5+ Kb7 43. Qxc2 Qa6 $18) 39... Kf8 {[%emt 0:01:53] [#]} 40. Qd6+ $1 {[%emt 0:00:47]} Re7 {[%emt 0:00:19]} 41. Qxh6+ {[%emt 0:00:10]} Ke8 {[%emt 0:00:02]} 42. Nf6+ {[%emt 0:00:06]} ({Less strong is} 42. Qc6+ Kd8 43. Qxc2 Re2 $16) 42... Kd8 {[%emt 0:00:09]} 43. Qf8+ {[%emt 0:00:06] Weighted Error Value: White=0.07 (flawless) /Black=0.46} 1-0

[Event "87th Spanish Championship 2022"]
[Site "Linares"]
[Date "2022.08.15"]
[Round "6.5"]
[White "Martinez-Conde Hernandez, Carlos"]
[Black "Gines Esteo, Pedro Antonio"]
[Result "0-1"]
[ECO "B12"]
[WhiteElo "2205"]
[BlackElo "2455"]
[Annotator "TA"]
[PlyCount "74"]
[EventDate "2022.08.11"]
[EventType "swiss"]
[EventCountry "ESP"]
[SourceTitle "playchess.com"]
[Source "ChessBase"]
[SourceQuality "1"]
[TimeControl "5400+30"]

{[%evp 9,74,11,14,0,23,18,27,0,-9,-54,-26,-81,-91,-67,-72,-119,-100,-179,-78,-68,-62,-144,-142,-154,-139,-245,-254,-245,-231,-285,-296,-283,-272,-322,-314,-302,-292,-302,-255,-268,-272,-301,-266,-256,-264,-266,-255,-237,-185,-372,-343,-342,-342,-381,-377,-489,-481,-470,-459,-6149,-6120,-5143,-5143,-29997,-29998,-29998,-29999]} 1. e4 {[%emt 0:00:07] Lukacs,P} c6 {[%emt 0:00:19]} 2. d4 {[%emt 0:00:11]} d5 {[%emt 0:00:06]} 3. e5 {[%emt 0:00:11]} Bf5 {[%emt 0:00:21]} 4. g4 {[%emt 0:00:37]} Bd7 {[%emt 0:08:53]} 5. Be3 {[%emt 0:00:22]} h5 {[%emt 0:01:58]} 6. gxh5 {[%emt 0:01:46] [#] B12: Caro-Kann: Advance Variation.} Nh6 $146 {[%emt 0:00:25]} ({Predecessor:} 6... Bf5 7. Ne2 Bg4 8. Rg1 Bxh5 9. e6 Qd6 10. exf7+ Bxf7 11. Nd2 Nd7 12. Bf4 Qb4 13. c3 Qxb2 {1-0 (58) Zhang,P (2567)-Seirawan,Y (2626) Beijing 2003 CBM 098 [Lukacs,P]}) 7. Nc3 {[%emt 0:09:18]} Nf5 {[%emt 0:02:35][%cal Oc6c5]} 8. Qf3 {[%emt 0:04:03] White has an edge.} c5 {[%emt 0:01:22]} 9. O-O-O {[%emt 0:02:00]} (9. Nxd5 $2 e6 10. Ne2 Bc6 $19) (9. e6 $5 fxe6 10. dxc5 $11) 9... cxd4 {[%emt 0:05:50]} 10. Bxd4 {[%emt 0:02:07]} (10. e6 $1 $11 {remains equal.} Bxe6 11. Bxd4) 10... Nxd4 {[%emt 0:02:38]} 11. Rxd4 {[%emt 0:00:06]} e6 {[%emt 0:00:03]} 12. h4 {[%emt 0:19:42]} (12. Rd1 $142) 12... Qc7 {[%emt 0:19:12]} 13. Bb5 {[%emt 0:16:32]} (13. Rf4 $17) 13... Bxb5 {[%emt 0:12:50]} (13... a6 $19 {and Black stays clearly on top.} 14. Bxd7+ Nxd7) 14. Nxb5 $17 {[%emt 0:00:07]} Qb6 {[%emt 0:00:14]} 15. Qb3 {[%emt 0:07:13] Black continues to play with concentration.} ({Better is} 15. Nh3 $15 Nc6 16. Ng5) 15... Nd7 {[%emt 0:12:05][%mdl 1024] Black has strong compensation.} 16. Qa4 {[%emt 0:04:11]} a6 {[%emt 0:05:13]} 17. Nc3 {[%emt 0:03:27]} (17. Nd6+ $17 {only move.} Bxd6 18. exd6) 17... O-O-O $19 {[%emt 0:00:32]} (17... Rxh5 18. Nf3) 18. Rf4 {[%emt 0:01:20]} f6 {[%emt 0:10:46][%cal Bf7f6,Bf6e5,Be5e4][%mdl 32]} (18... Rxh5 19. Nf3) 19. Nf3 {[%emt 0:06:45]} fxe5 {[%emt 0:00:33]} (19... Nxe5 20. Nxe5 fxe5 21. Rf7 $17) 20. Rf7 {[%emt 0:00:13][%cal Of7d7]} e4 {[%emt 0:00:39]} ({Stronger than} 20... Rxh5 21. Qg4 Rh6 22. Rxd7 Rxd7 23. Nxe5 $17) 21. Rxd7 {[%emt 0:01:03]} Rxd7 {[%emt 0:01:01]} 22. Ne5 {[%emt 0:00:05]} Rd8 {[%emt 0:00:22]} 23. Nf7 {[%emt 0:00:24]} Bc5 {[%emt 0:00:14]} ({But not} 23... Qxf2 $2 24. Nxh8 Qf3 25. Rd1 $19) 24. Nxh8 {[%emt 0:02:12]} Rxh8 {[%emt 0:00:06]} 25. f3 {[%emt 0:02:38]} Be3+ {[%emt 0:02:18]} 26. Kb1 {[%emt 0:00:45]} Bd4 {[%emt 0:00:05] [#] ...Bxc3 is the strong threat.} ({Inferior is} 26... exf3 27. Qg4 Kb8 28. Qxf3 $17) 27. Nd1 {[%emt 0:00:24]} exf3 {[%emt 0:00:43]} 28. c3 {[%emt 0:00:10]} Bg1 {[%emt 0:08:04]} 29. Qf4 {[%emt 0:03:19] Prevents Rf8.} (29. h6 gxh6 30. Qf4) 29... f2 {[%emt 0:00:21]} 30. Rh3 {[%emt 0:00:16]} Rxh5 {[%emt 0:01:14][%cal Bh8h5,Bh5f5,Bf5f2][%mdl 32] [#] Strongly threatening ...Rf5.} 31. Qf8+ {[%emt 0:00:39]} Qd8 {[%emt 0:00:12]} 32. Qf7 {[%emt 0:00:07]} Rf5 {[%emt 0:02:14]} 33. Qxe6+ {[%emt 0:00:07]} Qd7 {[%emt 0:00:04]} 34. Qg8+ {[%emt 0:00:04]} (34. Qxd7+ $142 Kxd7 35. Nxf2 Bxf2 36. Kc2) 34... Kc7 {[%emt 0:00:04]} 35. Nxf2 {[%emt 0:00:19]} Rxf2 {[%emt 0:00:15]} 36. Rd3 {[%emt 0:00:26]} Rf1+ {[%emt 0:00:05]} 37. Kc2 {[%emt 0:00:11]} Qa4+ {[%emt 0:00:04] Weighted Error Value: White=0.70/Black=0.13 (very precise)} 0-1